[Event "56th Ilmar Raud Memorial 2022"]
[Site "Viljandi"]
[Date "2022.07.05"]
[Round "3.5"]
[White "Kulaots, Kaido"]
[Black "Soot, Margus"]
[Result "1-0"]
[ECO "B42"]
[WhiteElo "2543"]
[BlackElo "2062"]
[Annotator "TA"]
[PlyCount "49"]
[EventDate "2022.07.05"]
[EventType "swiss"]
[EventCountry "EST"]
[SourceTitle "playchess.com"]
[Source "ChessBase"]
[SourceQuality "1"]
[TimeControl "40/5400+30:900+30"]

{[%evp 13,48,28,24,26,24,16,47,0,0,-7,-10,1,0,-17,17,0,14,-3,4,0,0,0,57,18,56,53,54,39,55,53,169,183,707,705,660,602,29999]} 1. e4 {[%emt 0:00:12]} c5 {[%emt 0:03:51]} 2. Nf3 {[%emt 0:00:44]} e6 {[%emt 0:00:12]} 3. d4 {[%emt 0:00:27]} cxd4 {[%emt 0:00:19]} 4. Nxd4 {[%emt 0:00:05]} a6 {[%emt 0:00:06]} 5. Bd3 {[%emt 0:01:52]} g6 {[%emt 0:01:11]} 6. O-O {[%emt 0:06:11]} Bg7 {[%emt 0:00:05]} 7. c3 {[%emt 0:03:02]} Ne7 {[%emt 0:05:46] 7...Ne7 scores better than 7...d6.} 8. f4 {[%emt 0:00:57] B42: Sicilian: Kan Variation: 5 Bd3.} (8. Bg5 {feels hotter.} O-O 9. Bc2 d6 10. Nd2) 8... O-O {[%emt 0:13:02]} 9. Nd2 {[%emt 0:01:32] [#]} Nbc6 $146 {[%emt 0:00:58]} ({Predecessor:} 9... d6 10. N2f3 Nd7 11. f5 e5 12. Ne2 gxf5 13. exf5 Nc5 14. Bc2 Bxf5 15. Bxf5 Nxf5 {0-1 (31) Abdulov,O (2356)-Anurag,M (2416) Al Ain 2013}) 10. N2f3 {[%emt 0:04:47]} (10. Nxc6 $14 {is more appropriate.} Nxc6 11. Nf3) 10... Nxd4 $11 {[%emt 0:00:40]} 11. cxd4 {[%emt 0:00:57]} b5 {[%emt 0:04:40]} 12. Bd2 {[%emt 0:10:32]} d6 {[%emt 0:02:44]} 13. Qe1 {[%emt 0:02:50]} Nc6 {[%emt 0:02:08]} 14. Be3 {[%emt 0:01:19]} Bb7 {[%emt 0:02:03]} 15. Rd1 {[%emt 0:05:32]} Qe7 {[%emt 0:08:03]} 16. a3 {[%emt 0:06:15]} Rac8 {[%emt 0:05:10]} 17. Bb1 {[%emt 0:03:54][%cal Bd3b1,Bb1a2,Ba2e6][%mdl 32]} f5 {[%emt 0:09:07]} (17... Rfe8 $11) 18. e5 {[%emt 0:03:00]} dxe5 {[%emt 0:02:42]} 19. dxe5 {[%emt 0:02:04]} Rfd8 {[%emt 0:00:20]} 20. Rxd8+ {[%emt 0:05:49]} Rxd8 {[%emt 0:01:07]} 21. Ba2 {[%emt 0:00:32]} Nb8 {[%emt 0:03:01]} (21... h6 $14) 22. Qh4 $18 {[%emt 0:03:22]} Re8 {[%emt 0:07:54] [#]} (22... Qxh4 23. Bxe6+ (23. Nxh4 Kf7 $14) 23... Kf8 24. Nxh4 Ke7) 23. Ng5 {[%emt 0:02:50]} h6 {[%emt 0:00:07]} 24. Bxe6+ {[%emt 0:00:40]} Kf8 {[%emt 0:00:05]} 25. Nh7# {[%emt 0:00:07] Weighted Error Value: White=0.12 (very precise) /Black=0.54} 1-0

[Event "56th Ilmar Raud Memorial 2022"]
[Site "Viljandi"]
[Date "2022.07.05"]
[Round "3.6"]
[White "Shishkov, Andrei"]
[Black "Blokhin, Sofia"]
[Result "1-0"]
[ECO "A91"]
[WhiteElo "2366"]
[BlackElo "1996"]
[Annotator "TA"]
[PlyCount "129"]
[EventDate "2022.07.05"]
[EventType "swiss"]
[EventCountry "EST"]
[SourceTitle "playchess.com"]
[Source "ChessBase"]
[SourceQuality "1"]
[TimeControl "40/5400+30:900+30"]

{[%evp 11,129,47,44,19,39,29,56,58,61,60,83,75,91,88,82,41,67,28,64,62,59,52,52,58,56,50,55,53,63,37,40,37,59,47,57,33,51,35,43,33,94,73,79,91,110,117,111,52,37,56,200,196,206,154,153,105,207,135,427,420,518,511,472,307,310,328,296,306,325,327,323,290,298,78,83,47,68,68,62,28,28,8,10,8,8,8,27,8,132,0,0,0,0,0,0,0,3426,992,3069,552,2597,1104,29966,29962,29981,29982,29982,29980,29980,29981,29981,29982,29982,29983,29983,29984,29984,29985,29985,29986]} 1. d4 {[%emt 0:00:01]} f5 {[%emt 0:01:20]} 2. g3 {[%emt 0:00:06]} e6 {[%emt 0:00:17]} 3. Bg2 {[%emt 0:00:04]} Nf6 {[%emt 0:00:09]} 4. Nh3 {[%emt 0:00:23]} d5 {[%emt 0:00:09]} 5. O-O {[%emt 0:00:09]} Be7 {[%emt 0:00:19]} 6. c4 {[%emt 0:00:30]} O-O {[%emt 0:00:36]} 7. Nf4 {[%emt 0:01:31] A91: Classical Dutch: Early Deviations.} c6 {[%emt 0:04:35]} 8. Qc2 {[%emt 0:06:14]} Na6 {[%emt 0:04:15]} 9. a3 {[%emt 0:00:49] White is slightly better.} Nc7 {[%emt 0:01:30]} 10. Nd2 {[%emt 0:02:18][%cal Bb1d2,Bd2f3,Bf3e5][%mdl 32]} Bd7 {[%emt 0:06:18]} 11. Nf3 {[%emt 0:02:28]} Ne4 {[%emt 0:03:08]} 12. Ne5 {[%emt 0:01:47]} Be8 {[%emt 0:03:59]} 13. f3 {[%emt 0:05:15]} Nd6 {[%emt 0:02:25] [#]} 14. b3 $146 {[%emt 0:01:38] 0x0.00222d48104ddp-1022s more active pieces. The black rooks are badly placed.} ({Predecessor:} 14. Bd2 Nxc4 15. Nxc4 dxc4 16. Qxc4 Bf7 17. Qd3 Bf6 18. e3 e5 19. dxe5 Bxe5 20. Qc2 Nd5 21. Nd3 Bc7 22. Rfe1 Re8 {½-½ (22) Donchenko,A (2492)-Fernandez,D (2377) Balatonboglar 2014}) 14... g5 {[%emt 0:04:41]} 15. Nfd3 {[%emt 0:00:34]} Nf7 {[%emt 0:02:07]} 16. Bb2 {[%emt 0:02:07]} Nxe5 {[%emt 0:04:05]} 17. Nxe5 {[%emt 0:00:25]} Bf6 {[%emt 0:00:57]} 18. e4 {[%emt 0:03:28]} Bxe5 {[%emt 0:01:16]} 19. dxe5 {[%emt 0:00:16]} Bg6 {[%emt 0:04:55]} 20. exf5 {[%emt 0:05:05]} Bxf5 {[%emt 0:00:55]} 21. Qc3 {[%emt 0:00:34]} Rc8 {[%emt 0:05:41]} 22. Qe3 {[%emt 0:02:27]} b6 {[%emt 0:03:51]} 23. Rad1 {[%emt 0:11:20]} Qe7 {[%emt 0:02:18]} 24. Bc1 {[%emt 0:02:58]} h6 {[%emt 0:05:58]} 25. h4 {[%emt 0:06:23]} c5 {[%emt 0:05:08] [#]} (25... gxh4 $14 26. g4 Bc2) 26. Rf2 $1 $16 {[%emt 0:05:56][%cal Rh4g5]} d4 {[%emt 0:02:11]} ({Weaker is} 26... gxh4 27. g4 Bg6 28. Qxh6 $16) 27. Qd2 {[%emt 0:00:23][%cal Rh4g5]} b5 {[%emt 0:08:36]} 28. hxg5 {[%emt 0:00:44]} hxg5 {[%emt 0:00:22]} 29. Qxg5+ {[%emt 0:00:30]} (29. g4 $16 Bh7 30. Qxg5+ Qxg5 31. Bxg5) 29... Qxg5 $14 {[%emt 0:00:07]} 30. Bxg5 {[%emt 0:00:03]} Rf7 {[%emt 0:00:29] Prevents Be7.} ({Black should play} 30... bxc4 $14 31. bxc4 Kf7) 31. g4 $18 {[%emt 0:03:57]} Bh7 {[%emt 0:02:15]} 32. f4 {[%emt 0:03:25]} a5 {[%emt 0:02:54]} 33. Bf1 {[%emt 0:02:00] A strong pair of Bishops.} (33. a4 $142 bxc4 34. bxc4) 33... Rb8 {[%emt 0:01:51]} (33... a4 $16 {keeps fighting.}) 34. Bf6 {[%emt 0:11:41]} Be4 $2 {[%emt 0:03:42][%mdl 8192]} (34... bxc4 $16 35. Bxc4 Be4) 35. Re1 {[%emt 0:04:33]} Bc6 {[%emt 0:00:18]} 36. Rh2 {[%emt 0:02:06][%csl Gf6][%cal Rh2h8]} Rh7 {[%emt 0:00:27] Inhibits Rh8+.} 37. Rxh7 {[%emt 0:03:55]} Kxh7 {[%emt 0:00:06]} 38. Bd3+ {[%emt 0:00:03]} Kg8 {[%emt 0:00:14]} 39. Re2 {[%emt 0:00:31] Strongly threatening Rh2.} bxc4 {[%emt 0:03:26]} 40. Bxc4 {[%emt 0:00:00] Black must now prevent Rh2.} Nd5 {[%emt 0:00:00]} 41. f5 {[%emt 0:03:06]} Kf7 {[%emt 0:12:35]} 42. Rh2 $2 {[%emt 0:08:56]} (42. g5 $18 {has better winning chances.} exf5 43. Rh2) 42... Nxf6 $16 {[%emt 0:00:37]} 43. fxe6+ {[%emt 0:08:41]} Kg7 {[%emt 0:00:27]} 44. exf6+ {[%emt 0:00:08]} Kxf6 $14 {[%emt 0:00:07][%mdl 4096] Endgame KRB-KRB} 45. Rh5 {[%emt 0:01:33]} Bb5 $1 {[%emt 0:02:52]} 46. Rf5+ {[%emt 0:02:37]} Ke7 {[%emt 0:02:35]} 47. Rxc5 {[%emt 0:00:25]} (47. Kg2 {is more complex.} Bxc4 48. bxc4 a4 49. Kf3) 47... Bxc4 {[%emt 0:00:09]} 48. bxc4 {[%emt 0:00:03]} Kxe6 {[%emt 0:01:44]} 49. Rxa5 $11 {[%emt 0:00:50] Kf2 is the strong threat. KR-KR} Rc8 {[%emt 0:00:41]} 50. Ra6+ {[%emt 0:02:22]} (50. Kf2 $16) 50... Ke5 {[%emt 0:00:47]} 51. Kf2 {[%emt 0:00:28]} Rxc4 {[%emt 0:02:27]} 52. g5 {[%emt 0:00:38]} Ke4 {[%emt 0:03:06]} 53. g6 {[%emt 0:00:26]} Kd3 $2 {[%emt 0:02:47][%mdl 8192]} (53... Rc2+ $11 54. Kg3 Rc1) 54. g7 $18 {[%emt 0:00:41]} Rc8 {[%emt 0:00:13]} 55. Rc6 {[%emt 0:02:03]} Re8 {[%emt 0:00:44]} 56. a4 {[%emt 0:00:11] White threatens a5 and mate.} Kd2 {[%emt 0:00:59]} 57. a5 {[%emt 0:00:12] White mates.} d3 {[%emt 0:00:28]} 58. a6 {[%emt 0:00:16]} Kd1 {[%emt 0:00:58]} 59. Rg6 {[%emt 0:00:58]} Rg8 {[%emt 0:00:59] [#]} 60. a7 $1 {[%emt 0:00:17]} (60. Ke3 d2 $11) 60... d2 {[%emt 0:00:39]} 61. a8=Q {[%emt 0:00:12]} Rxa8 {[%emt 0:00:07]} 62. g8=Q {[%emt 0:00:04]} Rxg8 {[%emt 0:00:20]} 63. Rxg8 {[%emt 0:00:01]} Kc1 {[%emt 0:00:16]} 64. Rc8+ {[%emt 0:00:04]} Kd1 {[%emt 0:00:08]} 65. Rd8 {[%emt 0:00:05] Weighted Error Value: White=0.35/Black=0.34} 1-0

[Event "56th Ilmar Raud Memorial 2022"]
[Site "Viljandi"]
[Date "2022.07.05"]
[Round "4.1"]
[White "Laurusas, Tomas"]
[Black "Miezis, Normunds"]
[Result "1-0"]
[ECO "A52"]
[WhiteElo "2561"]
[BlackElo "2446"]
[Annotator "TA"]
[PlyCount "111"]
[EventDate "2022.07.05"]
[EventType "swiss"]
[EventCountry "EST"]
[SourceTitle "playchess.com"]
[Source "ChessBase"]
[SourceQuality "1"]
[TimeControl "40/5400+30:900+30"]

{[%evp 9,111,22,24,22,21,14,21,18,37,14,63,35,46,40,41,41,42,38,35,39,39,41,54,33,31,25,52,45,40,37,64,63,59,58,59,60,67,62,64,69,57,25,43,41,36,30,28,7,22,8,43,37,55,50,52,43,41,0,0,0,97,97,97,102,93,97,572,572,560,574,573,316,308,0,564,566,541,561,559,559,559,559,559,559,729,727,829,727,912,864,1008,985,958,960,1440,1437,1345,1314,1135,1030,1504,1454,1921,1792]} 1. d4 {[%emt 0:00:03]} Nf6 {[%emt 0:00:36]} 2. c4 {[%emt 0:00:10]} e5 {[%emt 0:00:27]} 3. dxe5 {[%emt 0:02:41]} Ng4 {[%emt 0:01:08]} 4. Nc3 {[%emt 0:05:29]} Nxe5 {[%emt 0:05:01]} 5. e3 {[%emt 0:00:13]} g6 {[%emt 0:00:27]} (5... d6 6. Nge2 g6 7. b3 Bg7 8. Bb2 O-O 9. Nf4 Nbd7 10. Be2 Nc5 11. O-O a5 12. Qc2 Re8 13. Rad1 Nc6 14. Ncd5 Bf5 15. Qd2 Ne5 16. Kh1 Ne4 17. Qe1 c6 {½-½ (54) Laurusas,T (2418)-Miezis,N (2499) Tallinn 2015}) 6. b3 {[%emt 0:00:37] A52: Budapest Gambit.} Bg7 {[%emt 0:00:32][%cal Oe5c4]} 7. Bb2 {[%emt 0:00:05]} O-O {[%emt 0:02:56]} 8. Be2 {[%emt 0:08:08] The position is equal.} Re8 {[%emt 0:04:37]} 9. Nf3 {[%emt 0:00:58]} Nbc6 {[%emt 0:04:32]} (9... d6 $11 {should be considered.}) 10. O-O {[%emt 0:02:37]} d6 {[%emt 0:05:34]} 11. Qd2 {[%emt 0:01:06] [#]} Bf5 $146 {[%emt 0:05:06]} ({Predecessor:} 11... b6 12. Nb5 Bb7 13. Rad1 a6 14. Nbd4 Qe7 15. Rfe1 Rad8 16. Qc1 f5 17. a3 a5 {0-1 (46) Dudiefa,D-Van Kemenade,R (2087) Coventry 2005}) 12. Rad1 {[%emt 0:05:41]} a5 {[%emt 0:03:04]} 13. Qc1 {[%emt 0:08:08]} Nd7 {[%emt 0:03:30]} 14. Nd5 {[%emt 0:04:42]} Be4 {[%emt 0:04:55]} 15. Bxg7 {[%emt 0:00:54]} Kxg7 {[%emt 0:00:09]} 16. Qc3+ {[%emt 0:04:02]} Kg8 {[%emt 0:02:24][%cal Oc6b4]} 17. a3 {[%emt 0:09:42] Against Nb4} Ne7 {[%emt 0:09:19]} 18. Nf4 {[%emt 0:00:51]} Nf5 {[%emt 0:01:41]} 19. Nd2 {[%emt 0:01:29]} Bc6 {[%emt 0:00:34]} 20. Nd5 {[%emt 0:00:10]} Ne7 {[%emt 0:10:53]} 21. Nf3 {[%emt 0:01:41]} Bxd5 {[%emt 0:03:00]} 22. cxd5 {[%emt 0:00:06]} Nb6 {[%emt 0:00:30]} 23. Bc4 {[%emt 0:00:03] White is much more active.} Nxc4 {[%emt 0:01:58]} 24. Qxc4 {[%emt 0:00:18]} Nc8 {[%emt 0:00:13]} 25. Qf4 {[%emt 0:08:42]} (25. Rc1 $5 {[%cal Rc4c7]}) 25... Qe7 {[%emt 0:01:31]} 26. Rd4 {[%emt 0:02:37]} Nb6 {[%emt 0:00:33]} 27. Rc1 {[%emt 0:03:04]} Rac8 {[%emt 0:01:09]} 28. Qh6 {[%emt 0:00:54]} f6 {[%emt 0:03:02]} 29. h3 {[%emt 0:09:05]} c6 {[%emt 0:05:19]} 30. dxc6 {[%emt 0:00:23]} bxc6 {[%emt 0:00:10]} 31. Qf4 {[%emt 0:02:00]} d5 {[%emt 0:00:13]} 32. b4 {[%emt 0:00:21]} axb4 {[%emt 0:00:36]} 33. Rxb4 {[%emt 0:02:19]} Nc4 {[%emt 0:00:56]} 34. Rcb1 {[%emt 0:02:01]} Rc7 {[%emt 0:08:00]} ({Reject} 34... Nxa3 35. R1b3 (35. Rb7 Qf8 $15) 35... Nc4 36. Rb7 $15) (34... Qd8 $11 {remains equal.}) 35. Rb8 $16 {[%emt 0:05:20] Strongly threatening Rxe8+.} Rxb8 {[%emt 0:00:11]} 36. Rxb8+ {[%emt 0:00:03]} Kg7 {[%emt 0:00:14] [#]} 37. Nd4 $1 $36 {[%emt 0:00:06][%mdl 2048] White has strong initiative.} Ne5 $2 {[%emt 0:01:32][%mdl 8192]} (37... Rd7 $16 {is a better chance.}) 38. Qg3 $18 {[%emt 0:00:35] And now Nf5+ would win.} Kf7 {[%emt 0:05:39]} 39. Rh8 {[%emt 0:06:52]} Kg7 {[%emt 0:01:26]} 40. Ra8 {[%emt 0:00:00] Nf5+ is the strong threat.} Kf7 {[%emt 0:00:00] [#]} 41. Rh8 $2 {[%emt 0:06:12]} (41. Nf5 $1 {[%mdl 512]} Qd7 (41... Qc5 42. Rh8) 42. Nh6+ (42. Rh8 Ke6 $16) 42... Ke6 43. f4) 41... Kg7 {[%emt 0:00:33]} 42. Nf5+ {[%emt 0:00:04] White is clearly winning.} Kxh8 {[%emt 0:00:09]} 43. Nxe7 {[%emt 0:00:02]} Rxe7 {[%emt 0:00:12][%mdl 4096] Endgame KQ-KRN} 44. Qf4 {[%emt 0:00:03]} Kg7 {[%emt 0:00:10]} 45. Qd4 {[%emt 0:00:05]} Rb7 {[%emt 0:00:28]} 46. a4 {[%emt 0:00:24]} Nc4 {[%emt 0:01:01]} 47. Qc5 {[%emt 0:03:09]} Rb1+ {[%emt 0:00:28]} 48. Kh2 {[%emt 0:02:30]} Nd2 {[%emt 0:00:19]} 49. h4 {[%emt 0:01:49]} Nf1+ {[%emt 0:02:08]} 50. Kh3 {[%emt 0:00:14]} Nd2 {[%emt 0:00:41]} 51. f3 {[%emt 0:05:24]} Nc4 {[%emt 0:02:06]} 52. Qe7+ {[%emt 0:00:20]} Kg8 {[%emt 0:00:09]} 53. Qxf6 {[%emt 0:00:24]} Re1 {[%emt 0:00:26]} 54. Qe6+ {[%emt 0:01:10]} Kg7 {[%emt 0:00:07]} 55. Qxc6 {[%emt 0:00:04]} h5 {[%emt 0:01:47]} 56. e4 {[%emt 0:01:39] Weighted Error Value: White=0.18 (very precise) /Black=0.31} 1-0

[Event "56th Ilmar Raud Memorial 2022"]
[Site "Viljandi"]
[Date "2022.07.05"]
[Round "4.2"]
[White "Krivenko, Dion"]
[Black "Kulaots, Kaido"]
[Result "0-1"]
[ECO "B40"]
[WhiteElo "2090"]
[BlackElo "2543"]
[Annotator "TA"]
[PlyCount "72"]
[EventDate "2022.07.05"]
[EventType "swiss"]
[EventCountry "EST"]
[SourceTitle "playchess.com"]
[Source "ChessBase"]
[SourceQuality "1"]
[TimeControl "40/5400+30:900+30"]

{[%evp 9,72,12,21,22,28,12,19,21,33,13,10,-9,-6,-8,-6,-5,-11,-22,-18,-37,-21,-29,-9,-18,-9,-48,-38,-38,-24,-66,-12,-5,-4,-64,-66,-116,-98,-155,-158,-149,-152,-157,-125,-131,-130,-166,-134,-224,-242,-241,-226,-241,-244,-281,-200,-276,-256,-472,-480,-1035,-1026,-1041,-1041,-1713,-1709]} 1. e4 {[%emt 0:00:01]} c5 {[%emt 0:00:14]} 2. Nf3 {[%emt 0:00:05]} e6 {[%emt 0:00:17]} 3. g3 {[%emt 0:00:06]} Nc6 {[%emt 0:01:43]} 4. Bg2 {[%emt 0:01:13]} d5 {[%emt 0:04:09]} 5. exd5 {[%emt 0:00:48]} exd5 {[%emt 0:03:33]} 6. d4 {[%emt 0:00:02] B40: Sicilian: 2...e6, Unusual lines.} Nf6 {[%emt 0:00:54]} (6... Bg4 {with more complications.} 7. O-O cxd4 8. Nbd2 Bd6) 7. O-O {[%emt 0:00:52]} Be7 {[%emt 0:00:25]} 8. dxc5 {[%emt 0:01:31] The position is equal.} Bxc5 {[%emt 0:03:36]} 9. Bg5 {[%emt 0:06:00]} O-O {[%emt 0:06:39] Active counter play!} 10. Nbd2 {[%emt 0:06:43]} h6 {[%emt 0:01:28]} 11. Bxf6 {[%emt 0:00:40]} Qxf6 {[%emt 0:00:07]} 12. Nb3 {[%emt 0:00:01][%csl LRc5,LRd5]} Bb6 {[%emt 0:00:16]} 13. c3 {[%emt 0:01:00]} Bf5 {[%emt 0:10:43]} 14. Nfd4 {[%emt 0:08:06]} Be4 {[%emt 0:04:15]} 15. Nxc6 {[%emt 0:14:05]} bxc6 {[%emt 0:01:54]} 16. Bxe4 {[%emt 0:00:07]} dxe4 {[%emt 0:00:05] [#]} 17. Qe2 $146 {[%emt 0:00:01]} ({Predecessor:} 17. Qg4 Qe5 18. Rae1 f5 19. Qe2 Rae8 20. Qc4+ Kh8 21. Nd4 f4 22. f3 e3 23. Kg2 {0-1 (63) Muse,D (2358)-Hoffmann,P (2372) Germany 2016}) 17... Rae8 {[%emt 0:01:56]} 18. c4 {[%emt 0:03:40]} Qe5 {[%emt 0:15:44]} 19. Rac1 {[%emt 0:06:47]} h5 {[%emt 0:02:14]} (19... f5 $15) 20. c5 $11 {[%emt 0:01:07]} Bc7 {[%emt 0:00:08][%cal Oh5h4]} 21. Rc3 {[%emt 0:15:01]} (21. Rfd1 $11) 21... h4 $15 {[%emt 0:03:35]} 22. Re3 {[%emt 0:06:09] White is on the road to losing.} (22. Rd1 $15) 22... f5 $17 {[%emt 0:05:15]} 23. f4 {[%emt 0:06:11]} (23. Qc4+ $142 Kh8 24. Qc3) 23... Qf6 {[%emt 0:00:40]} 24. Qc4+ {[%emt 0:01:19]} Kh7 {[%emt 0:15:22]} 25. Qc3 {[%emt 0:03:16]} Rd8 {[%emt 0:01:34]} 26. Qxf6 {[%emt 0:01:10]} Rxf6 {[%emt 0:01:14][%cal Bf8f6,Bf6h6,Bh6h3][%mdl 32]} 27. Kf2 {[%emt 0:03:39]} Rd5 {[%emt 0:00:56]} 28. Ke2 {[%emt 0:00:31] [#]} (28. Ree1 $17) 28... hxg3 $1 $19 {[%emt 0:00:41]} 29. hxg3 {[%emt 0:00:36][%cal Og3g4]} Rh6 {[%emt 0:00:05]} 30. Rc3 {[%emt 0:02:12]} Rh3 {[%emt 0:02:25]} 31. Rf2 {[%emt 0:03:54]} Kg6 {[%emt 0:01:20]} 32. a3 {[%emt 0:00:44]} Bd8 {[%emt 0:03:15] aiming for ...Bf6.} 33. g4 $2 {[%emt 0:02:35] [#]} (33. Rg2 {might work better.}) 33... fxg4 {[%emt 0:00:30][%cal Bf5g4,Bg4h3][%mdl 32] Black is clearly winning.} 34. f5+ {[%emt 0:01:30]} (34. Rxh3 $142 gxh3 35. Nd2) 34... Kh5 {[%emt 0:03:54]} 35. Rxh3+ {[%emt 0:03:45]} gxh3 {[%emt 0:00:07]} 36. Nd2 {[%emt 0:00:02]} e3 {[%emt 0:00:34] Weighted Error Value: White=0.49/Black=0.09 (flawless)} 0-1

[Event "56th Ilmar Raud Memorial 2022"]
[Site "Viljandi"]
[Date "2022.07.05"]
[Round "4.3"]
[White "Pultinevicius, Paulius"]
[Black "Haitin, Ilja"]
[Result "1-0"]
[ECO "D10"]
[WhiteElo "2539"]
[BlackElo "2363"]
[Annotator "TA"]
[PlyCount "79"]
[EventDate "2022.07.05"]
[EventType "swiss"]
[EventCountry "EST"]
[SourceTitle "playchess.com"]
[Source "ChessBase"]
[SourceQuality "1"]
[TimeControl "40/5400+30:900+30"]

{[%evp 9,79,16,51,59,31,20,68,63,57,53,52,54,48,35,48,48,45,37,47,32,31,36,36,29,29,34,30,35,35,29,42,29,34,25,25,20,20,22,37,27,26,0,0,-10,-10,-19,-11,-20,-20,-54,0,0,0,0,0,-32,0,0,0,-20,232,231,823,844,816,850,849,841,813,779,818,626]} 1. d4 {[%emt 0:00:01] Huebner,R} d5 {[%emt 0:00:04]} 2. c4 {[%emt 0:00:06]} c6 {[%emt 0:00:03]} 3. Nc3 {[%emt 0:00:36]} Nf6 {[%emt 0:00:14]} 4. e3 {[%emt 0:00:06]} a6 {[%emt 0:00:37]} 5. Qc2 {[%emt 0:00:59]} Bg4 {[%emt 0:01:21]} 6. h3 {[%emt 0:05:56] D10: Slav Defence: 3 cxd5 (without early Nf3) and 3 Nc3.} Bh5 {[%emt 0:00:20]} 7. Qb3 {[%emt 0:00:25]} b5 {[%emt 0:07:35]} (7... Ra7 $11) 8. cxd5 $14 {[%emt 0:00:41] White is slightly better.} Nxd5 {[%emt 0:02:57]} 9. a4 {[%emt 0:14:36][%cal Ra4b5]} b4 {[%emt 0:07:59]} 10. Nxd5 {[%emt 0:01:46]} cxd5 {[%emt 0:00:21] [#]} 11. Qxb4 $146 {[%emt 0:03:24] Strongly threatening Qb7.} ({Predecessor:} 11. Bd2 e6 12. a5 Nc6 13. Qa4 Qd7 14. Ne2 Bd6 15. Nf4 Bxf4 16. exf4 Nxd4 17. Bxb4 {½-½ (53) Aleksandrov,A (2654)-Kallio,H (2502) Batumi 2002 CBM 090 [Huebner,R]}) 11... Nc6 {[%emt 0:02:30]} 12. Qc3 {[%emt 0:06:24]} Qd7 {[%emt 0:06:06][%cal Oe7e5]} 13. Bd2 {[%emt 0:02:51] And now Rc1 would win.} e6 {[%emt 0:03:30]} 14. Rc1 {[%emt 0:01:02]} Nb4 {[%emt 0:00:33]} 15. Qb3 {[%emt 0:02:52]} Rb8 {[%emt 0:03:14]} 16. Nf3 {[%emt 0:01:33]} Bxf3 {[%emt 0:05:34]} 17. gxf3 {[%emt 0:00:06]} Bd6 {[%emt 0:01:25]} 18. Be2 {[%emt 0:03:09]} O-O {[%emt 0:00:41][%cal Be8g8,Bg8h8,Bh8g7][%mdl 32]} 19. Kf1 {[%emt 0:00:38]} Kh8 {[%emt 0:12:58]} 20. h4 {[%emt 0:07:56]} h5 {[%emt 0:03:33]} 21. f4 {[%emt 0:03:46] Threatening Qd1.} g6 $1 {[%emt 0:01:30]} 22. Rg1 {[%emt 0:02:07]} Kg7 {[%emt 0:15:57]} 23. Qd1 {[%emt 0:06:43]} Rh8 {[%emt 0:00:59]} 24. b3 {[%emt 0:00:22]} a5 {[%emt 0:02:49]} 25. f3 {[%emt 0:06:07]} (25. Bxh5 $5 Nd3 26. Rc3 $14) 25... Be7 {[%emt 0:03:26]} 26. Rh1 {[%emt 0:02:18]} Rhc8 {[%emt 0:01:29]} 27. Kg2 {[%emt 0:02:57]} Rxc1 {[%emt 0:02:48]} 28. Bxc1 {[%emt 0:00:36]} Rc8 {[%emt 0:00:24]} 29. Kg3 {[%emt 0:00:14]} Rc2 {[%emt 0:01:00]} (29... Na2 $15 30. Qd2 Nxc1 31. Rxc1 Rb8) 30. Bd2 $11 {[%emt 0:04:20] Threatens to win with Bxb4.} Qc7 {[%emt 0:01:07]} 31. Rh2 {[%emt 0:02:45]} Rb2 {[%emt 0:07:17]} 32. Be1 {[%emt 0:01:34]} Rc2 {[%emt 0:03:48]} 33. Bd2 {[%emt 0:03:20][%cal Be1d2,Bd2b4,Bb4a5][%mdl 32] Against Rc1} Rb2 {[%emt 0:00:01]} 34. Bb5 {[%emt 0:05:24][%cal Be2b5,Bb5d7,Bd7c8][%mdl 32] Hoping for Bxb4.} Rc2 $2 {[%emt 0:02:46][%mdl 8192] This costs Black the game.} (34... Na2 $11) 35. Bxb4 $18 {[%emt 0:00:34]} Rc1 {[%emt 0:00:30] [#]} (35... Bxh4+ 36. Rxh4 axb4) 36. Bxa5 $1 {[%emt 0:00:37] White is clearly winning.} Qc8 {[%emt 0:00:28] [#]} (36... Qxf4+ 37. exf4) 37. Bd7 $1 {[%emt 0:00:39]} Rxd1 {[%emt 0:00:32]} 38. Bxc8 {[%emt 0:00:05] A strong pair of Bishops.} Rg1+ {[%emt 0:00:21]} 39. Kf2 {[%emt 0:00:22]} Rb1 {[%emt 0:00:10]} 40. b4 {[%emt 0:00:00] Weighted Error Value: White=0.06 (flawless) /Black=0.22 (precise)} 1-0

[Event "56th Ilmar Raud Memorial 2022"]
[Site "Viljandi"]
[Date "2022.07.05"]
[Round "4.4"]
[White "Sakalauskas, Vaidas"]
[Black "Maiorov, Nikita"]
[Result "1/2-1/2"]
[ECO "D36"]
[WhiteElo "2327"]
[BlackElo "2474"]
[Annotator "TA"]
[PlyCount "42"]
[EventDate "2022.07.05"]
[EventType "swiss"]
[EventCountry "EST"]
[SourceTitle "playchess.com"]
[Source "ChessBase"]
[SourceQuality "1"]
[TimeControl "40/5400+30:900+30"]

{[%evp 22,29,45,22,25,20,43,0,0,18]} 1. d4 {[%emt 0:00:30]} Nf6 {[%emt 0:00:04]} 2. c4 {[%emt 0:00:20]} e6 {[%emt 0:00:05]} 3. Nc3 {[%emt 0:00:24]} d5 {[%emt 0:00:04]} 4. cxd5 {[%emt 0:00:39]} exd5 {[%emt 0:00:04]} 5. Bg5 {[%emt 0:00:16]} Be7 {[%emt 0:00:11]} 6. e3 {[%emt 0:00:33]} c6 {[%emt 0:00:05]} 7. Bd3 {[%emt 0:00:51]} Nbd7 {[%emt 0:00:10]} 8. Nf3 {[%emt 0:00:36]} O-O {[%emt 0:01:28]} 9. Qc2 {[%emt 0:01:09]} Re8 {[%emt 0:00:13]} 10. O-O {[%emt 0:00:57]} Nf8 {[%emt 0:00:05]} 11. h3 {[%emt 0:00:50]} Be6 {[%emt 0:00:11]} 12. Ne5 {[%emt 0:01:53]} N6d7 {[%emt 0:04:07] D36: Queen's Gambit Declined: Exchange Variation: Main line (5 Bg5 c6 6 Qc2).} 13. Bxe7 {[%emt 0:01:07]} Rxe7 {[%emt 0:01:31]} 14. f4 {[%emt 0:00:26]} f6 {[%emt 0:00:33]} 15. Nf3 {[%emt 0:00:23] [#] An interesting draw.  Weighted Error Value: White=0.24 (precise) /Black=0.01 (flawless)} {Predecessor:} Rc8 $146 16. Rae1 Bf7 17. f5 c5 18. Qf2 cxd4 19. exd4 Nb6 20. Rxe7 Qxe7 21. Re1 Qd7 {½-½ (42) Korobov,A (2683)-Bocharov,D (2528) Chess.com INT 2020} 1/2-1/2